[Event "1000GM 0004 IM Norm 2022"]
[Site "Saint Louis"]
[Date "2022.09.23"]
[Round "4.4"]
[White "Chen, Ryo"]
[Black "Eckert, Doug"]
[Result "1-0"]
[ECO "C78"]
[WhiteElo "2256"]
[BlackElo "2165"]
[Annotator "TA"]
[PlyCount "73"]
[EventDate "2022.09.21"]
[EventType "tourn"]
[EventCountry "USA"]
[SourceTitle "playchess.com"]
[Source "ChessBase"]
[SourceQuality "1"]
[TimeControl "5400+30"]

{[%evp 14,73,37,8,49,0,45,0,10,0,10,0,14,0,0,0,20,16,24,0,10,0,0,0,0,0,0,0,20,0,12,8,0,0,0,-14,-10,-33,-42,-33,0,0,0,0,0,0,47,38,90,95,90,85,97,93,124,122,135,122,168,157,252,187]} 1. e4 {[%emt 0:00:00]} e5 {[%emt 0:00:46]} 2. Nf3 {[%emt 0:00:18]} Nc6 {[%emt 0:00:13]} 3. Bb5 {[%emt 0:00:14]} a6 {[%emt 0:00:06]} 4. Ba4 {[%emt 0:00:16]} Nf6 {[%emt 0:00:06]} 5. O-O {[%emt 0:00:18]} b5 {[%emt 0:00:06]} 6. Bb3 {[%emt 0:00:06]} Bc5 {[%emt 0:00:05] is more profitable than 6...Be7 at the moment.} 7. c3 {[%emt 0:00:30]} d6 {[%emt 0:00:06]} 8. a4 {[%emt 0:01:54] [#] aiming for axb5.} (8. d4 $5 {[%cal Rd4c5]} Bb6 9. Be3 $11) 8... Rb8 {[%emt 0:00:20] C78: Ruy Lopez: Archangelsk and Möller Defences.} (8... Nxe4 $2 9. Bd5 Bb7 10. Bxe4 $18) 9. d3 {[%emt 0:03:04]} (9. d4 $14 Bb6 10. axb5 axb5 11. Na3) 9... h6 {[%emt 0:00:40]} 10. Nbd2 {[%emt 0:00:52][%cal Bb1d2,Bd2f1,Bf1e3][%mdl 32]} O-O {[%emt 0:00:12] The position is equal.} 11. Re1 {[%emt 0:01:11]} Bb6 {[%emt 0:02:22]} 12. Nf1 {[%emt 0:00:31]} Ne7 {[%emt 0:02:14]} 13. axb5 {[%emt 0:02:04]} axb5 {[%emt 0:00:06]} 14. Be3 {[%emt 0:02:51] [#]} Bxe3 $146 {[%emt 0:01:54]} ({Predecessor:} 14... c5 15. h3 Ng6 16. Ng3 c4 17. Bxb6 Rxb6 18. Bc2 cxd3 19. Bxd3 Be6 20. Qd2 Qc7 {0-1 (49) Akopian,V (2673)-Adams,M (2729) Yerevan 2008}) 15. Nxe3 {[%emt 0:00:12]} Ng6 {[%emt 0:00:23]} 16. Bc2 {[%emt 0:02:28]} Re8 {[%emt 0:02:00]} 17. b4 {[%emt 0:00:21]} Be6 {[%emt 0:03:37]} 18. d4 {[%emt 0:01:56]} c6 {[%emt 0:08:10]} 19. dxe5 {[%emt 0:11:43]} dxe5 {[%emt 0:02:18]} 20. Ra7 {[%emt 0:22:44]} Ra8 {[%emt 0:02:03]} 21. Qa1 {[%emt 0:02:50]} Qb8 {[%emt 0:00:36]} 22. Rxa8 {[%emt 0:00:20]} Qxa8 {[%emt 0:00:04]} 23. Qb2 {[%emt 0:01:51]} Qb7 {[%emt 0:01:19]} 24. Nf5 {[%emt 0:04:23] [#] Black must now prevent Nd6.} Ra8 {[%emt 0:00:29]} 25. Bb3 {[%emt 0:01:52] Inhibits Ra2.} Bxb3 {[%emt 0:03:05]} 26. Qxb3 {[%emt 0:00:13]} Qc7 {[%emt 0:00:35]} 27. c4 {[%emt 0:02:43]} bxc4 {[%emt 0:04:15]} 28. Qxc4 {[%emt 0:00:14]} Ra4 {[%emt 0:00:34]} 29. Qc5 {[%emt 0:11:14]} Nd7 {[%emt 0:02:31]} (29... Qb7 $11) 30. Ne7+ $1 $14 {[%emt 0:00:41]} Kh7 {[%emt 0:12:07]} (30... Nxe7 $14 31. Qxe7 f6) 31. Qxc6 $16 {[%emt 0:00:16] White has more active pieces.} Qxc6 {[%emt 0:00:43]} 32. Nxc6 {[%emt 0:00:10]} f6 {[%emt 0:00:22]} 33. g3 {[%emt 0:01:21]} Ra6 {[%emt 0:01:52]} 34. Rc1 {[%emt 0:00:55]} Ra2 {[%emt 0:01:58]} 35. Ne1 {[%emt 0:03:08]} Re2 {[%emt 0:00:44]} (35... Ngf8 $16 36. Kg2 Ne6) 36. Kf1 {[%emt 0:06:37]} Rxe4 {[%emt 0:06:32]} (36... Rb2 $16 {was necessary.} 37. Nd3 Rd2) 37. Nf3 {[%emt 0:00:32] Weighted Error Value: White=0.11 (very precise) /Black=0.19 (very precise)} 1-0

[Event "1000GM 0004 IM Norm 2022"]
[Site "Saint Louis"]
[Date "2022.09.23"]
[Round "4.5"]
[White "Marek, Matyas"]
[Black "Antova, Gabriela"]
[Result "1/2-1/2"]
[ECO "C76"]
[WhiteElo "2338"]
[BlackElo "2305"]
[Annotator "TA"]
[PlyCount "38"]
[EventDate "2022.09.21"]
[EventType "tourn"]
[EventCountry "USA"]
[SourceTitle "playchess.com"]
[Source "ChessBase"]
[SourceQuality "1"]
[TimeControl "5400+30"]

{[%evp 12,38,41,11,11,22,13,0,0,0,5,0,12,0,-4,0,9,0,17,0,0,-5,1,0,0,0,0,0,0]} 1. e4 {[%emt 0:00:26]} e5 {[%emt 0:06:23]} 2. Nf3 {[%emt 0:00:17]} Nc6 {[%emt 0:00:35]} 3. Bb5 {[%emt 0:00:07]} a6 {[%emt 0:01:15]} 4. Ba4 {[%emt 0:00:12]} d6 {[%emt 0:01:06]} 5. c3 {[%emt 0:01:30]} g6 {[%emt 0:01:26]} 6. d4 {[%emt 0:02:34]} Bd7 {[%emt 0:00:41]} 7. dxe5 {[%emt 0:04:28]} (7. h3 {seems wilder.} Nf6 8. Bc2 Bg7 9. O-O) 7... Nxe5 {[%emt 0:03:45] The position is equal. C76: Ruy Lopez: Deferred Steinitz: 5 c3 Bd7 6 d4 g6.} 8. Nxe5 {[%emt 0:02:55]} (8. Bc2 {with more complications.} Nf6 9. Nxe5 dxe5 10. O-O) 8... dxe5 {[%emt 0:00:08]} 9. Bxd7+ {[%emt 0:00:09]} Qxd7 {[%emt 0:00:09]} 10. Qxd7+ {[%emt 0:00:02]} Kxd7 {[%emt 0:00:08]} 11. Be3 {[%emt 0:00:09]} Bh6 {[%emt 0:09:33] [#]} 12. Ke2 $146 {[%emt 0:01:47]} ({Predecessor:} 12. Bxh6 Nxh6 13. h4 f6 14. Nd2 Nf7 15. h5 Ke6 16. Ke2 {½-½ (16) Horvath,T (2410)-Zsinka,L (2340) Hungary 1997}) 12... Bxe3 {[%emt 0:00:59]} 13. Kxe3 {[%emt 0:00:03]} Ne7 {[%emt 0:00:32]} 14. Nd2 {[%emt 0:00:32]} Rad8 {[%emt 0:02:46]} 15. Rad1 {[%emt 0:01:04]} Ke6 {[%emt 0:01:53]} 16. Nc4 {[%emt 0:01:07]} Nc6 {[%emt 0:01:39]} 17. Ke2 {[%emt 0:01:23]} f5 {[%emt 0:08:14]} 18. f3 {[%emt 0:00:36]} Rxd1 {[%emt 0:03:50]} 19. Rxd1 {[%emt 0:00:17]} Rd8 {[%emt 0:01:26] A balanced but interesting game.  Weighted Error Value: White=0.09 (flawless) /Black=0.05 (flawless)} 1/2-1/2

[Event "1000GM 0004 IM Norm 2022"]
[Site "Saint Louis"]
[Date "2022.09.23"]
[Round "5.1"]
[White "Antova, Gabriela"]
[Black "Denby, Caleb"]
[Result "1/2-1/2"]
[ECO "D38"]
[WhiteElo "2305"]
[BlackElo "2201"]
[Annotator "TA"]
[PlyCount "106"]
[EventDate "2022.09.21"]
[EventType "tourn"]
[EventCountry "USA"]
[SourceTitle "playchess.com"]
[Source "ChessBase"]
[SourceQuality "1"]
[TimeControl "5400+30"]

{[%evp 18,106,32,26,26,8,16,9,6,10,34,19,29,16,23,20,37,20,18,18,22,20,17,0,0,0,0,0,0,0,6,6,8,8,8,0,0,0,0,0,0,0,99,99,91,0,0,0,0,-3,-4,-8,-2,-2,0,-2,0,0,0,0,0,0,0,0,-2,-4,0,0,0,-8,0,0,0,0,0,0,0,0,0,0,0,0,0,0,0,0,0,0,0,0,0]} 1. d4 {[%emt 0:00:07]} Nf6 {[%emt 0:00:06]} 2. c4 {[%emt 0:00:40]} e6 {[%emt 0:00:22]} 3. Nf3 {[%emt 0:00:12]} d5 {[%emt 0:00:05]} 4. Nc3 {[%emt 0:00:10]} Bb4 {[%emt 0:00:14]} 5. Bg5 {[%emt 0:00:15]} h6 {[%emt 0:00:05]} 6. Bxf6 {[%emt 0:00:09]} Qxf6 {[%emt 0:00:06]} 7. e3 {[%emt 0:00:10]} O-O {[%emt 0:02:38]} 8. Rc1 {[%emt 0:00:19]} dxc4 {[%emt 0:03:44]} 9. Bxc4 {[%emt 0:00:11]} c5 {[%emt 0:00:07]} 10. O-O {[%emt 0:00:21]} cxd4 {[%emt 0:12:11] D38: Queen's Gambit Declined: Ragozin Defence (4 Nf3 Bb4).} 11. Ne4 {[%emt 0:00:19]} Qe7 {[%emt 0:00:22]} 12. a3 {[%emt 0:00:40]} Ba5 {[%emt 0:01:05]} 13. Qxd4 {[%emt 0:00:24]} Nc6 {[%emt 0:19:48]} (13... Rd8 $5 {[%cal Rd8d4]} 14. Qe5 Bc7 $11) 14. Qd6 {[%emt 0:01:13] [#]} Bd8 $146 {[%emt 0:01:54]} ({Predecessor:} 14... Qxd6 15. Nxd6 Rd8 16. Rfd1 a6 17. b4 Bc7 18. Nxc8 Raxc8 19. Rxd8+ {½-½ (19) Lomineishvili,M (2367)-Javakhishvili,L (2493) Mamaia 2016}) 15. Rfd1 {[%emt 0:03:11]} Qxd6 {[%emt 0:01:50]} 16. Nxd6 {[%emt 0:04:35]} a6 {[%emt 0:05:46] Prevents Bb5.} 17. Nd2 {[%emt 0:11:47] Pair of Knights!} Be7 {[%emt 0:03:31]} 18. N2e4 {[%emt 0:04:13]} Rd8 {[%emt 0:00:21]} 19. f4 {[%emt 0:17:40]} Kf8 {[%emt 0:01:48]} 20. Be2 {[%emt 0:09:56]} f5 {[%emt 0:02:54]} 21. Nxc8 {[%emt 0:01:49]} Raxc8 {[%emt 0:00:19]} 22. Nc5 {[%emt 0:01:39]} Bxc5 {[%emt 0:05:45]} 23. Rxc5 {[%emt 0:00:28]} Rxd1+ {[%emt 0:00:07]} 24. Bxd1 {[%emt 0:00:07]} Ne7 {[%emt 0:03:47]} 25. Rxc8+ {[%emt 0:01:02]} Nxc8 $11 {[%emt 0:00:04][%mdl 4096] Endgame KB-KN} 26. h4 {[%emt 0:07:40]} Ke7 {[%emt 0:02:50]} 27. Kf2 {[%emt 0:00:56]} Nd6 {[%emt 0:00:46]} 28. Bb3 {[%emt 0:11:25]} Ne4+ {[%emt 0:06:19]} 29. Ke2 {[%emt 0:00:39]} g5 {[%emt 0:00:27]} (29... Kf6 $11) 30. hxg5 $16 {[%emt 0:01:29]} hxg5 {[%emt 0:00:12] [#]} 31. fxg5 {[%emt 0:01:34]} ({White should try} 31. Bc2 $1 $16 {[%cal Rc2e4]}) 31... Nxg5 $11 {[%emt 0:00:05] The position is equal.} 32. Kd3 {[%emt 0:01:43]} Ne4 {[%emt 0:01:05]} 33. Kd4 {[%emt 0:01:46]} Kd6 {[%emt 0:00:58]} 34. Bc2 {[%emt 0:03:57]} Nf6 {[%emt 0:00:19]} 35. b4 {[%emt 0:02:33]} Nd5 {[%emt 0:03:44]} 36. Bd1 {[%emt 0:04:28]} Nc7 {[%emt 0:05:23]} 37. Be2 {[%emt 0:02:31]} e5+ {[%emt 0:05:07]} 38. Kc3 {[%emt 0:02:11]} Nd5+ {[%emt 0:01:18]} 39. Kd3 {[%emt 0:01:10]} e4+ {[%emt 0:04:06]} 40. Kd4 {[%emt 0:00:16]} Nc7 {[%emt 0:00:03]} 41. Bc4 {[%emt 0:01:55]} Nb5+ {[%emt 0:01:04]} 42. Bxb5 {[%emt 0:00:07]} axb5 {[%emt 0:00:03] KP-KP} 43. g3 {[%emt 0:03:26]} b6 {[%emt 0:00:02]} 44. Kc3 {[%emt 0:00:26]} Ke5 {[%emt 0:00:38] [#] Strongly threatening ...Kf6.} 45. Kd2 $1 {[%emt 0:00:13]} Kf6 {[%emt 0:00:17] And now ...Kg5 would win.} 46. Ke2 {[%emt 0:00:11]} Ke6 {[%emt 0:01:02]} 47. Kd2 {[%emt 0:00:21]} Ke5 {[%emt 0:00:09]} 48. Ke2 {[%emt 0:00:43]} Kf6 {[%emt 0:01:08]} 49. Kf2 {[%emt 0:00:14]} Kg5 {[%emt 0:00:25]} 50. Kg1 {[%emt 0:00:31]} Kg6 {[%emt 0:00:19]} 51. Kf1 {[%emt 0:00:21]} Kf6 {[%emt 0:00:03]} 52. Kf2 {[%emt 0:00:20]} Ke6 {[%emt 0:00:11] aiming for ...Kd5.} 53. Ke2 {[%emt 0:00:10]} Ke5 {[%emt 0:00:24] Weighted Error Value: White=0.05 (flawless) /Black=0.07 (flawless)} 1/2-1/2

[Event "1000GM 0004 IM Norm 2022"]
[Site "Saint Louis"]
[Date "2022.09.23"]
[Round "5.2"]
[White "Eckert, Doug"]
[Black "Marek, Matyas"]
[Result "0-1"]
[ECO "A58"]
[WhiteElo "2165"]
[BlackElo "2338"]
[Annotator "TA"]
[PlyCount "101"]
[EventDate "2022.09.21"]
[EventType "tourn"]
[EventCountry "USA"]
[SourceTitle "playchess.com"]
[Source "ChessBase"]
[SourceQuality "1"]
[TimeControl "5400+30"]

{[%evp 9,101,32,64,47,62,50,60,44,47,39,74,78,74,74,87,74,65,79,79,85,86,21,35,18,32,8,37,-12,-12,-36,-33,-29,-38,-27,-22,-126,-58,-118,-102,-66,-79,-91,-78,-75,-83,-95,-23,-46,-15,-22,0,-33,-31,-81,-71,-100,-101,-94,-98,-98,-98,-100,-102,-103,-95,-109,-64,-67,-34,-53,-55,-78,-62,-86,-80,-83,-92,-113,-114,-162,-152,-146,-134,-127,-102,-144,-65,-156,-152,-147,-141,-197,-183,-29975]} 1. d4 {[%emt 0:10:56]} Nf6 {[%emt 0:00:08]} 2. c4 {[%emt 0:00:06][%cal Bc2c4,Bc4b5][%mdl 32]} c5 {[%emt 0:00:04]} 3. d5 {[%emt 0:00:11]} b5 {[%emt 0:00:04]} 4. cxb5 {[%emt 0:00:10]} a6 {[%emt 0:00:05]} 5. bxa6 {[%emt 0:00:03]} g6 {[%emt 0:00:05]} 6. Nc3 {[%emt 0:00:04] A58: Benko/Volga Gambit: Lines with 5 bxa6.} Bg7 {[%emt 0:00:03]} 7. e4 {[%emt 0:00:11][%cal Oa6a7] Hoping for a7!} O-O {[%emt 0:00:05]} 8. a7 {[%emt 0:00:35] White is slightly better.} Rxa7 {[%emt 0:00:04]} 9. Nf3 {[%emt 0:00:05]} d6 {[%emt 0:02:34]} 10. Be2 {[%emt 0:01:01]} Ba6 {[%emt 0:00:17]} 11. O-O {[%emt 0:00:32]} Qa5 {[%emt 0:02:00]} 12. a4 {[%emt 0:09:55] [#]} Rb7 $146 {[%emt 0:02:54]} ({Predecessor:} 12... Nbd7 13. Rb1 Rb8 14. Bd2 Qb6 15. b3 Raa8 16. Bxa6 Qxa6 17. Qc2 Ne8 18. Nb5 Rb7 {1-0 (38) Cervantes Landeiro,T (2311)-Parvanyan,A (2449) Chess.com INT 2020}) 13. Ra3 {[%emt 0:08:37]} Bxe2 {[%emt 0:07:09]} 14. Qxe2 {[%emt 0:00:13]} Rb4 {[%emt 0:00:15]} 15. Nd2 {[%emt 0:03:11]} (15. e5 $16 Ng4 16. e6) 15... Nfd7 {[%emt 0:09:13][%cal Bf6d7,Bd7b6,Bb6a4,Ba4c3][%mdl 32]} 16. Qd1 {[%emt 0:03:37]} Nb6 {[%emt 0:13:11]} 17. Qc2 {[%emt 0:03:44]} Rc8 $1 {[%emt 0:07:24]} 18. b3 {[%emt 0:14:12]} (18. Qd3 $14 {was preferrable.}) 18... c4 $11 {[%emt 0:15:06]} 19. bxc4 {[%emt 0:00:12]} (19. Nxc4 {is interesting.} Nxc4 20. Na2 Qc5 21. bxc4 Rxc4 22. Qd3) 19... N8d7 {[%emt 0:01:55]} 20. Na2 {[%emt 0:09:30]} Rxa4 {[%emt 0:06:39]} 21. Rxa4 {[%emt 0:00:05]} Nxa4 {[%emt 0:03:54]} 22. Nf3 {[%emt 0:04:11] [#]} (22. Nb3 $11 {remains equal.} Qa6 23. Be3) 22... Qa6 {[%emt 0:06:24]} (22... Nb2 $1 $17 {[%mdl 512]} 23. Qb1 (23. Bxb2 $2 Qxa2 24. e5 Rb8 $19) 23... Nxc4) 23. Nb4 {[%emt 0:09:56]} (23. Bg5 $15) 23... Rxc4 $17 {[%emt 0:00:37]} 24. Nxa6 {[%emt 0:00:08]} Rxc2 {[%emt 0:00:05]} 25. Be3 {[%emt 0:01:18]} Nc3 {[%emt 0:03:20]} 26. Nb4 {[%emt 0:02:42]} Rb2 {[%emt 0:01:01]} 27. Nc6 {[%emt 0:00:22]} Bf6 {[%emt 0:02:28]} (27... Nxe4 $17 28. Nxe7+ Kf8) 28. Nd2 {[%emt 0:00:49]} Kg7 {[%emt 0:03:36]} 29. f3 {[%emt 0:01:00]} Rc2 {[%emt 0:02:19]} 30. Kh1 {[%emt 0:04:15]} (30. Nb4 $5 {[%cal Rb4c2]} Rb2 31. Nc6 $15) 30... Ne5 {[%emt 0:01:14]} 31. Nxe5 {[%emt 0:00:43]} (31. Nd4 $15 Ra2 32. N2b3) 31... Bxe5 {[%emt 0:00:07]} 32. Nb3 {[%emt 0:05:11] [#]} Nxd5 $1 {[%emt 0:04:11] Black is more active.} 33. exd5 {[%emt 0:00:41] Black must now prevent Rc1.} Rc3 {[%emt 0:00:03][%csl LRb3,LRe3]} 34. Bg5 {[%emt 0:01:42] aiming for Nc1.} Rxb3 {[%emt 0:01:20]} 35. Bxe7 {[%emt 0:00:15][%mdl 4096] Endgame KRB-KRB} Rd3 {[%emt 0:01:03]} 36. g3 {[%emt 0:01:28]} Rxd5 {[%emt 0:00:11]} 37. Kg2 {[%emt 0:01:08]} Bc3 {[%emt 0:02:52]} 38. Rc1 {[%emt 0:01:01]} Bb4 {[%emt 0:00:31]} 39. Rc8 {[%emt 0:00:47]} Rd2+ {[%emt 0:01:44]} 40. Kh3 {[%emt 0:00:10]} Re2 {[%emt 0:00:29]} 41. Bf8+ {[%emt 0:00:55]} Kf6 {[%emt 0:00:08]} 42. Rd8 {[%emt 0:00:33]} Rd2 {[%emt 0:02:02]} 43. Re8 {[%emt 0:00:54]} h5 {[%emt 0:00:49]} 44. Re4 {[%emt 0:00:40]} (44. Be7+ $17 Kf5 45. Rf8) 44... Bc5 $19 {[%emt 0:01:00]} 45. g4 {[%emt 0:02:34]} hxg4+ {[%emt 0:01:17]} 46. fxg4 {[%emt 0:00:31]} g5 {[%emt 0:00:26]} 47. Re1 {[%emt 0:01:18] Against Bg1} Bf2 {[%emt 0:00:57]} (47... Kg6 $17 {And now ...Bf2 would win.} 48. Be7 Bf2) 48. Be7+ {[%emt 0:00:45]} ({White should play} 48. Re8 $1 $15) 48... Kg6 {[%emt 0:00:03] Black is clearly better.} 49. Rf1 {[%emt 0:00:13][%cal Oe7d6] [#]} d5 {[%emt 0:00:20]} 50. Ra1 {[%emt 0:00:58]} (50. Rc1 $17 {was necessary.}) 50... Bd4 {[%emt 0:00:48]} 51. Bd6 $2 {[%emt 0:00:40] Weighted Error Value: White=0.22 (precise) /Black=0.12 (very precise)} (51. Ra6+ $19 f6 52. Bd6) 0-1

[Event "1000GM 0004 IM Norm 2022"]
[Site "Saint Louis"]
[Date "2022.09.23"]
[Round "5.3"]
[White "Krishnan, Varun"]
[Black "Chen, Ryo"]
[Result "1/2-1/2"]
[ECO "B56"]
[WhiteElo "2306"]
[BlackElo "2256"]
[Annotator "TA"]
[PlyCount "148"]
[EventDate "2022.09.21"]
[EventType "tourn"]
[EventCountry "USA"]
[SourceTitle "playchess.com"]
[Source "ChessBase"]
[SourceQuality "1"]
[TimeControl "5400+30"]

{[%evp 14,148,19,25,24,21,21,26,17,29,22,11,33,0,0,-6,-9,-5,-9,-72,-77,-60,-76,-130,-147,-129,-135,-187,-178,-198,-195,-204,-195,-291,-285,-278,-222,-231,-220,-273,-267,-278,-268,-365,-108,-107,-107,-107,-112,-116,-116,-145,-122,-150,-133,-125,-121,-111,-134,-112,-45,-71,-73,-165,-103,-151,-175,-404,-396,-353,-187,-221,-208,-195,-197,-210,-207,-208,-172,-194,-201,-185,-184,-385,-364,-420,-381,-368,-132,-132,-132,-284,-231,-190,-189,-331,-303,-629,-601,-691,-674,-8901,-7799,-5552,-5077,-2018,-1012,-1501,-1474,-1008,0,0,0,0,0,0,0,0,0,0,0,0,0,0,0,0,0,0,0,0,0,0,0,0,0,0,0]} 1. e4 {[%emt 0:00:03]} c5 {[%emt 0:00:01]} 2. Nf3 {[%emt 0:00:29]} d6 {[%emt 0:00:25]} 3. d4 {[%emt 0:00:06]} cxd4 {[%emt 0:00:03]} 4. Nxd4 {[%emt 0:00:06]} Nf6 {[%emt 0:00:03]} 5. Nc3 {[%emt 0:00:29]} Nc6 {[%emt 0:00:05]} 6. f3 {[%emt 0:00:49]} e5 {[%emt 0:00:17]} 7. Nb3 {[%emt 0:00:07]} Be6 {[%emt 0:00:16]} 8. Be3 {[%emt 0:00:20]} d5 {[%emt 0:03:01] B56: Classical Sicilian: Unusual Lines.} 9. exd5 {[%emt 0:00:55]} (9. Nxd5 {is more complex.} Nxd5 10. exd5 Qxd5 11. Qxd5 Bxd5 12. Bb5) 9... Nxd5 {[%emt 0:00:09]} 10. Nxd5 {[%emt 0:00:53]} Qxd5 {[%emt 0:00:10] White has an edge.} 11. Qxd5 {[%emt 0:01:11]} Bxd5 {[%emt 0:00:08]} 12. O-O-O {[%emt 0:01:23]} O-O-O {[%emt 0:00:08]} 13. Bd3 {[%emt 0:04:42] [#]} b6 $146 {[%emt 0:04:48]} ({Predecessor:} 13... Kc7 14. c3 Be7 15. Rhe1 h5 16. Kc2 h4 17. Nd2 Be6 18. Ne4 b6 19. b3 f6 {1-0 (48) Nakamura,H (2768)-Vachier Lagrave,M (2757) Saint Louis 2022}) 14. Ba6+ {[%emt 0:09:07]} Kc7 {[%emt 0:01:23]} 15. c3 {[%emt 0:04:50] Prevents Nb4.} Be7 {[%emt 0:01:42]} 16. f4 {[%emt 0:05:29]} (16. Rhe1 $11) 16... Bxg2 $17 {[%emt 0:08:48]} 17. Rxd8 {[%emt 0:02:17]} Rxd8 {[%emt 0:02:07]} 18. Re1 {[%emt 0:15:33]} (18. Rg1 $142 Be4 19. fxe5) 18... exf4 {[%emt 0:01:37]} 19. Bxf4+ {[%emt 0:00:15]} Bd6 {[%emt 0:00:14]} 20. Be3 {[%emt 0:04:09]} (20. Bg3 $17) 20... Bd5 $19 {[%emt 0:00:48]} (20... Bxh2 21. Re2 Bf1 22. Rxh2 Bxa6 23. Rxh7 $17) 21. h3 {[%emt 0:03:50]} f5 {[%emt 0:02:47]} 22. Rd1 {[%emt 0:06:17]} Be5 {[%emt 0:02:27]} 23. Nd4 {[%emt 0:06:16]} (23. Bb5 $142) 23... Nxd4 {[%emt 0:00:19]} (23... Bxa2 $2 24. Nxf5 Rxd1+ 25. Kxd1 $19) 24. cxd4 {[%emt 0:00:18]} Bd6 {[%emt 0:00:43]} 25. Rf1 {[%emt 0:02:44]} Rf8 {[%emt 0:00:18]} (25... Bxa2 26. Rxf5 Be6 27. Rf3) 26. Bd3 {[%emt 0:02:06]} f4 {[%emt 0:01:41]} ({Worse is} 26... Bxa2 27. Rxf5 Rxf5 28. Bxf5 $17) 27. Bf2 {[%emt 0:01:13]} h6 {[%emt 0:01:29]} ({Avoid the trap} 27... Bxa2 $2 28. Bxh7 g5 29. Re1 $19) 28. h4 {[%emt 0:03:13]} Bg2 $2 {[%emt 0:00:27]} ({Not} 28... Bxa2 $2 29. Rg1 $19) (28... g5 $19 {is more deadly.} 29. Rg1 Be7) 29. Rg1 $17 {[%emt 0:01:44]} f3 {[%emt 0:00:46]} 30. h5 {[%emt 0:00:16]} Re8 {[%emt 0:00:33]} 31. Kc2 {[%emt 0:05:00]} Bf4 {[%emt 0:01:02]} 32. Bb5 {[%emt 0:03:54]} Re6 {[%emt 0:05:38]} 33. Bc4 {[%emt 0:01:26]} Rc6 {[%emt 0:00:14]} 34. Kd3 {[%emt 0:01:20]} g5 {[%emt 0:00:43]} 35. hxg6 {[%emt 0:00:35]} Rxg6 {[%emt 0:00:20]} 36. Re1 {[%emt 0:02:56]} Kd6 {[%emt 0:01:33] Inhibits Re7.} ({Black should try} 36... Bg3 $17 37. Re6 Rxe6 38. Bxg3+ Kd7 39. Bxe6+ Kxe6) 37. Kc3 {[%emt 0:01:42]} Bh3 {[%emt 0:10:00]} 38. Rh1 {[%emt 0:02:28]} (38. Re8 $17) 38... Bg4 {[%emt 0:01:16]} ({Better is} 38... Bd7 $19 39. Rh4 Rg4) 39. Bf7 {[%emt 0:02:38]} (39. Re1 $142) 39... Rg7 {[%emt 0:04:33]} 40. Rh4 $2 {[%emt 0:02:30]} (40. Bc4) 40... Rxf7 $19 {[%emt 0:07:05]} 41. Rxg4 {[%emt 0:00:01][%mdl 4096] Endgame KRB-KRB} Bg5 {[%emt 0:01:00]} (41... Ke6 $142 {...Kf5 is the strong threat.} 42. Kd3 Kf5) 42. Kd3 {[%emt 0:01:03]} Kd5 {[%emt 0:01:07]} 43. Rg1 {[%emt 0:00:59]} Re7 {[%emt 0:00:21] Strongly threatening ...Re2.} 44. Rg3 {[%emt 0:01:46]} Re2 {[%emt 0:00:12]} 45. Rxf3 {[%emt 0:00:08]} Rxb2 {[%emt 0:00:06]} 46. Rf5+ {[%emt 0:01:01]} Ke6 {[%emt 0:00:09]} 47. Re5+ {[%emt 0:00:03]} Kd7 {[%emt 0:00:16]} 48. Be3 {[%emt 0:02:56]} (48. Rf5 {might work better.}) 48... Bxe3 {[%emt 0:01:02]} 49. Kxe3 {[%emt 0:00:06]} Rxa2 {[%emt 0:00:25] KR-KR} 50. Rh5 {[%emt 0:00:23]} Kd6 $2 {[%emt 0:00:20]} (50... Kc6 $19 {has better winning chances.} 51. Kd3 Ra1) 51. Kd3 $17 {[%emt 0:00:53] [#]} Ra1 $1 {[%emt 0:02:51]} 52. Rxh6+ $2 {[%emt 0:00:11]} (52. Kc4 $17) 52... Kd5 $19 {[%emt 0:00:07] aiming for ...Ra3+.} 53. Rh5+ {[%emt 0:00:01]} Kc6 {[%emt 0:00:09] Hoping for ...a5.} 54. Rh6+ {[%emt 0:01:33] [#]} (54. Kc4 {was called for.}) 54... Kb5 $1 {[%emt 0:00:22]} 55. Rh5+ $2 {[%emt 0:00:37]} (55. Rh2) 55... Kb4 {[%emt 0:00:20]} 56. Rh2 {[%emt 0:00:12]} Rd1+ {[%emt 0:00:52]} 57. Ke4 {[%emt 0:00:05]} b5 {[%emt 0:00:32]} 58. Rb2+ {[%emt 0:01:17]} Kc4 {[%emt 0:00:12]} 59. Rc2+ {[%emt 0:00:02]} Kb3 {[%emt 0:00:10]} 60. Rc5 {[%emt 0:00:58]} Kb4 {[%emt 0:00:30]} 61. Kd5 {[%emt 0:00:31]} a5 $2 {[%emt 0:00:33]} ({Black should play} 61... a6 $19 {Threatens to win with ...Ka4.} 62. Rc2 Kb3) 62. Kc6 $11 {[%emt 0:00:26] The position is equal.} Rxd4 {[%emt 0:00:31]} 63. Rxb5+ {[%emt 0:00:04]} Ka4 {[%emt 0:00:07]} 64. Rb1 {[%emt 0:00:42]} Rc4+ {[%emt 0:00:04]} 65. Kd5 {[%emt 0:00:13]} Rb4 {[%emt 0:00:42]} 66. Ra1+ {[%emt 0:00:30]} Kb5 {[%emt 0:00:05]} 67. Rh1 {[%emt 0:01:05]} a4 {[%emt 0:00:08]} 68. Rh8 $1 {[%emt 0:00:25]} a3 {[%emt 0:01:29]} 69. Ra8 $1 {[%emt 0:00:27]} Rb3 {[%emt 0:00:47]} 70. Kd4 $1 {[%emt 0:00:33]} Rh3 {[%emt 0:00:22]} 71. Rb8+ $1 {[%emt 0:00:34]} Ka4 {[%emt 0:00:56] ( -> ...a2)} 72. Kc4 $1 {[%emt 0:00:17][%cal Rb8a8]} Rh4+ {[%emt 0:00:17]} 73. Kc3 {[%emt 0:00:08]} Rh3+ {[%emt 0:00:52]} 74. Kc4 {[%emt 0:00:02][%cal Rb8a8]} Rh4+ {[%emt 0:00:06] Black had all chances to win.  Weighted Error Value: White=0.48/Black=0.20 (precise)} 1/2-1/2